bitfinex/quotes_ETHUSD_20251117
["timestamp","ask_amount","ask_price","bid_price","bid_amount"]
[1763390795475,0.005,3198.9,3197.1,1.31249664]
[1763390795675,0.4888,3198.8,3197.2,0.81643041]
[1763390796041,0.4888,3198.8,3196.6,0.405504]
[1763390796352,0.4888,3198.8,3196.8,0.405504]
[1763390796548,0.4888,3198.8,3197.0,0.405504]
[1763390796760,0.4888,3198.8,3196.5,0.001]
[1763390797542,0.405504,3198.7,3196.5,0.001]
[1763390797848,0.405504,3198.5,3196.5,0.001]
[1763390798035,0.4888,3198.6,3196.5,0.001]
[1763390798238,0.4888,3198.5,3196.5,0.001]
[1763390798439,0.005,3198.9,3197.4,0.405504]
[1763390798681,0.005,3198.9,3197.4,7.25731148]
[1763390798980,0.005,3198.9,3198.2,0.405504]
[1763390799203,0.005,3198.9,3198.1,6.85180748]
[1763390799359,0.005,3198.9,3197.6,0.405504]
[1763390799559,0.005,3198.9,3198.0,0.90699264]
[1763390799757,0.005,3198.9,3198.1,0.43677256]
[1763390799959,0.005,3198.9,3198.1,0.871004]
[1763390800194,0.005,3198.9,3198.3,0.405504]
[1763390800593,0.005,3198.9,3198.3,0.871004]
[1763390800767,0.005,3198.9,3198.2,0.17779966]
[1763390801773,0.005,3198.9,3198.0,0.405504]
[1763390802001,0.005,3198.9,3197.9,0.4655]
[1763390802157,0.005,3198.9,3197.1,0.4655]
[1763390802361,0.4888,3198.8,3196.2,0.4665]
[1763390802600,3.7888,3198.8,3196.2,0.001]
[1763390802826,3.3,3198.6,3196.2,0.001]
[1763390803001,0.90699264,3198.5,3196.2,0.001]
[1763390803296,0.90699264,3198.3,3196.2,0.001]
[1763390803595,0.4888,3198.2,3196.2,0.001]
[1763390803958,3.7888,3198.2,3196.2,0.001]
[1763390804163,3.3,3198.0,3196.2,0.001]
[1763390804366,1.05178,3198.1,3196.2,0.001]
[1763390804565,1.31249664,3197.9,3196.2,0.001]
[1763390804979,0.4888,3197.8,3196.2,0.001]
[1763390805182,3.705504,3197.6,3196.2,0.001]
[1763390805384,4.69579264,3197.5,3196.2,0.001]
[1763390805588,4.69579264,3197.5,3195.1,0.005]
[1763390805589,4.20699264,3197.2,3195.1,0.005]
[1763390805971,3.7888,3197.1,3195.1,0.005]
[1763390806402,3.3,3196.7,3195.1,0.005]
[1763390806643,4.20699264,3196.9,3195.1,0.005]
[1763390806842,4.69579264,3196.9,3195.1,0.005]
[1763390807049,0.1841,3195.2,3195.1,0.005]
[1763390807445,0.95837926,3196.8,3195.1,0.005]
[1763390807446,0.4888,3195.8,3195.1,0.005]
[1763390807755,0.1841,3195.9,3195.1,0.005]
[1763390807959,0.6729,3196.5,3195.1,0.005]
[1763390808129,0.4888,3196.4,3195.1,0.005]
[1763390808516,0.405504,3196.3,3195.1,0.005]
[1763390809020,0.1841,3196.5,3195.1,0.005]
[1763390809021,0.4888,3196.2,3195.1,0.005]
[1763390810126,0.1841,3196.5,3195.1,0.005]
[1763390810659,0.4888,3196.8,3195.1,0.005]
[1763390813144,0.4888,3196.8,3195.1,0.4705]
[1763390813439,0.4888,3196.8,3195.1,0.005]
[1763390815329,0.4888,3196.8,3195.1,0.4705]
[1763390815649,0.4888,3196.8,3195.1,0.005]
[1763390816230,0.1841,3197.0,3195.1,0.005]
[1763390816231,0.1841,3197.0,3195.2,0.4655]
[1763390816631,0.4888,3196.9,3195.3,0.0589]
[1763390817349,0.4888,3196.9,3195.3,0.5244]
[1763390817870,0.4506,3197.6,3195.3,0.5244]
[1763390818075,0.4506,3197.8,3195.3,0.5244]
[1763390818421,0.4506,3197.8,3195.1,0.005]
[1763390818560,0.4506,3197.8,3195.5,0.405504]
[1763390818759,0.4506,3197.8,3195.6,0.4786]
[1763390818961,0.4506,3197.8,3195.1,0.005]
[1763390819162,0.405504,3197.7,3195.1,0.005]
[1763390819398,3.3,3197.4,3195.1,0.005]
[1763390819599,3.3,3197.2,3195.1,0.4836]
[1763390820105,3.7506,3197.2,3195.2,0.405504]
[1763390820307,3.7506,3197.2,3195.1,0.4836]
[1763390820308,3.3,3197.0,3195.1,0.4836]
[1763390820532,0.005,3197.9,3195.1,0.4836]
[1763390820533,0.4506,3197.7,3195.2,1.31249664]
[1763390820806,0.005,3197.9,3195.8,1.31249664]
[1763390821017,0.005,3197.9,3196.0,0.405504]
[1763390821222,0.002,3199.6,3197.8,0.0622]
[1763390821379,0.002,3199.6,3198.4,0.90699264]
[1763390821707,0.002,3199.6,3197.9,0.4786]
[1763390822203,6.85180748,3201.9,3199.2,0.09999999]
[1763390822374,6.85180748,3201.9,3198.1,0.90699264]
[1763390822375,0.68518075,3201.8,3199.1,0.09999999]
[1763390822589,0.68518075,3201.8,3197.8,0.0622]
[1763390822590,3.3,3200.4,3197.8,0.0622]
[1763390822769,3.3,3200.0,3197.3,0.09999999]
[1763390822968,3.3,3199.6,3197.2,0.1883]
[1763390823306,1.10588001,3199.9,3197.2,0.1883]
[1763390823307,1.10588001,3199.9,3197.9,0.09999999]
[1763390823503,0.90699264,3200.8,3197.9,0.4786]
[1763390823706,3.705504,3200.3,3197.7,0.09999999]
[1763390823877,3.705504,3199.9,3197.7,0.09999999]
[1763390824078,3.3,3199.5,3197.5,0.09999999]
[1763390824268,3.3,3199.5,3197.1,0.005]
[1763390824269,4.20699264,3199.0,3197.1,0.005]
[1763390824471,3.700504,3198.6,3198.1,0.005]
[1763390824809,0.405504,3197.7,3196.1,0.005]
[1763390825118,3.29,3196.8,3196.1,0.005]
[1763390825267,0.405504,3197.2,3196.1,0.005]
[1763390825506,0.405504,3197.5,3196.1,0.005]
[1763390826160,0.15952807,3198.4,3196.1,0.005]
[1763390826161,0.405504,3197.9,3196.1,0.005]
[1763390826327,4.02573115,3197.8,3196.1,0.005]
[1763390826509,0.72573115,3197.8,3196.1,0.005]
[1763390826852,0.46124966,3199.8,3196.1,0.005]
[1763390826853,1.31249664,3198.6,3196.1,0.005]
[1763390827034,1.31249664,3198.0,3196.1,0.005]
[1763390827234,3.3,3197.9,3196.1,0.005]
[1763390827455,3.705504,3197.5,3196.1,0.005]
[1763390827659,0.46124966,3197.4,3196.1,0.005]
[1763390827953,0.005,3198.9,3196.6,0.09999999]
[1763390828153,0.005,3198.9,3198.1,0.09999999]
[1763390828353,0.0042,3198.9,3198.1,0.09999999]
[1763390828513,0.0042,3198.9,3197.9,0.09999999]
[1763390828717,0.0042,3198.9,3198.2,0.09999999]
[1763390829175,0.0042,3198.9,3198.5,0.09999999]
[1763390829388,0.0042,3198.9,3198.3,0.09999999]
[1763390829677,0.0042,3198.9,3198.5,0.09999999]
[1763390829844,0.0042,3198.9,3197.9,0.09999999]
[1763390830044,0.0042,3198.9,3197.3,0.6669]
[1763390830247,0.0042,3198.9,3198.0,0.09999999]
[1763390830440,0.0042,3198.9,3198.8,0.1883]
[1763390830642,0.0042,3198.9,3198.8,0.28829999]
[1763390830944,0.0042,3198.9,3198.8,0.4786]
[1763390831142,0.005,3199.9,3199.2,0.09999999]
[1763390831381,0.005,3199.9,3199.5,0.09999999]
[1763390831765,0.005,3199.9,3199.6,0.4786]
[1763390831967,0.005,3199.9,3199.8,0.09999999]
[1763390832181,0.005,3201.9,3199.8,0.09999999]
[1763390832350,0.005,3201.9,3198.7,7.25731148]
[1763390832351,0.005,3201.9,3200.3,0.09999999]
[1763390832546,0.005,3201.9,3200.4,0.03124609]
[1763390832753,0.005,3201.9,3200.4,0.6669]
[1763390832987,0.005,3201.9,3200.6,0.09999999]
[1763390833188,0.0094,3201.6,3199.6,0.28829999]
[1763390833391,0.005,3201.9,3200.2,0.09999999]
[1763390833546,0.0094,3201.8,3199.9,0.09999999]
[1763390833992,0.005,3201.9,3200.2,0.09999999]
[1763390834190,0.005,3201.9,3200.7,0.09999999]
[1763390834493,0.005,3201.9,3200.1,0.405504]
[1763390834691,0.005,3201.9,3200.7,0.09999999]
[1763390835192,0.005,3201.9,3200.5,0.09999999]
[1763390835397,0.005,3201.9,3200.3,0.09999999]
[1763390835550,0.005,3201.9,3200.5,0.57859999]
[1763390835752,0.002,3200.9,3199.8,0.884104]
[1763390835992,0.002,3200.9,3200.2,0.09999999]
[1763390836195,0.002,3200.9,3199.9,0.09999999]
[1763390836507,0.005,3201.9,3199.9,0.09999999]
[1763390836508,0.002,3201.3,3200.8,0.09999999]
[1763390836722,0.002,3201.3,3201.2,0.09999999]
[1763390837086,0.002,3201.3,3201.2,0.57859999]
[1763390837787,0.005,3203.9,3201.2,0.57859999]
[1763390837788,0.005,3203.9,3202.2,0.09999999]
[1763390838036,0.005,3203.9,3202.4,0.09999999]
[1763390838325,0.005,3203.9,3201.8,0.1883]
[1763390838326,0.0254,3203.7,3201.8,0.1883]
[1763390838529,0.005,3203.9,3202.0,0.09999999]
[1763390838749,0.0254,3203.4,3201.5,0.09999999]
[1763390838905,0.005,3203.9,3202.0,0.09999999]
[1763390839089,0.005,3203.9,3201.8,0.09999999]
[1763390839286,0.005,3203.9,3201.6,0.4693]
[1763390839287,0.005,3203.9,3202.2,0.09999999]
[1763390839486,0.0254,3203.2,3201.4,0.09999999]
[1763390839712,0.0254,3203.7,3201.5,0.56929999]
[1763390840222,0.0254,3203.3,3201.3,0.1996]
[1763390840532,0.0254,3203.7,3201.5,0.09999999]
[1763390840821,0.005,3203.9,3201.5,0.09999999]
[1763390841029,0.0254,3203.7,3201.5,0.56929999]
[1763390841190,0.0254,3203.7,3201.9,0.09999999]
[1763390841590,0.0254,3203.7,3202.8,0.09999999]
[1763390841793,0.005,3203.9,3202.8,0.09999999]
[1763390842193,0.0254,3203.8,3202.7,0.09999999]
[1763390842520,0.0254,3203.8,3201.8,0.09999999]
[1763390842826,0.005,3203.9,3202.2,0.09999999]
[1763390843139,0.005,3203.9,3201.3,0.09999999]
[1763390843421,0.0254,3203.4,3201.5,0.09999999]
[1763390843626,0.0254,3203.8,3201.7,0.09999999]
[1763390843813,0.0254,3203.8,3202.0,0.09999999]
[1763390844015,0.005,3203.9,3201.5,0.09999999]
[1763390844016,0.0254,3203.3,3201.5,0.09999999]
[1763390844214,0.0254,3203.8,3202.0,0.09999999]
[1763390844427,0.0254,3203.8,3201.4,0.4693]
[1763390844732,0.0254,3203.3,3201.7,0.09999999]
[1763390844906,0.0254,3202.8,3200.6,0.6689]
[1763390845105,0.0254,3202.8,3201.1,0.09999999]
[1763390845306,0.0254,3202.8,3201.4,0.09999999]
[1763390845517,0.90699264,3203.4,3201.4,0.09999999]
[1763390845890,0.0254,3203.2,3201.4,0.09999999]
[1763390846102,0.0254,3203.2,3201.9,0.09999999]
[1763390846301,0.005,3203.9,3201.8,0.4693]
[1763390846522,0.0254,3203.5,3201.8,0.4693]
[1763390846894,0.005,3203.9,3201.8,0.56929999]
[1763390847095,0.005,3203.9,3202.2,0.09999999]
[1763390847096,0.0254,3203.7,3202.2,0.09999999]
[1763390847294,0.0254,3203.7,3201.8,0.4693]
[1763390847529,0.0254,3203.7,3201.6,0.09999999]
[1763390847730,0.0304,3202.9,3201.4,0.09999999]
[1763390847919,0.0304,3202.9,3200.7,0.4672]
[1763390848095,0.0304,3202.9,3199.1,0.1933]
[1763390848096,3.3,3202.5,3200.3,0.09999999]
[1763390848327,0.405504,3201.7,3199.1,0.1933]
[1763390848533,3.3,3201.4,3199.1,0.1933]
[1763390848737,3.3,3201.2,3199.1,0.1933]
[1763390849108,0.93239264,3201.5,3199.1,0.1933]
[1763390849109,0.0254,3201.1,3199.2,0.03125781]
[1763390849309,0.0254,3201.1,3199.5,0.09999999]
[1763390849635,0.0254,3201.8,3199.8,0.09999999]
[1763390849851,0.0254,3201.8,3200.4,0.09999999]
[1763390850055,0.0254,3201.8,3200.0,0.4672]
[1763390850056,0.0254,3201.8,3200.1,0.10499999]
[1763390850200,0.0254,3201.8,3200.1,0.005]
[1763390850931,0.0254,3201.8,3200.1,0.4722]
[1763390851096,0.005,3202.9,3200.3,0.09999999]
[1763390851295,0.005,3202.9,3200.9,0.09999999]
[1763390851296,0.0254,3202.8,3200.9,0.09999999]
[1763390851524,0.0246,3202.8,3200.4,0.09999999]
[1763390851710,0.0246,3202.8,3200.3,0.09999999]
[1763390851927,0.430104,3202.8,3200.3,0.09999999]
[1763390852244,0.0246,3202.8,3200.6,0.09999999]
[1763390852398,0.005,3202.9,3200.6,0.09999999]
[1763390852596,0.005,3202.9,3200.3,0.09999999]
[1763390852847,0.005,3202.9,3200.7,0.09999999]
[1763390852848,0.42119926,3202.8,3200.7,0.09999999]
[1763390853134,0.005,3202.9,3200.1,0.005]
[1763390853502,0.430104,3202.8,3200.1,0.005]
[1763390854032,0.405504,3202.2,3200.1,0.005]
[1763390854234,0.0246,3202.7,3200.2,0.56719999]
[1763390854445,0.005,3202.9,3200.3,0.001]
[1763390854446,0.0246,3202.6,3200.3,0.001]
[1763390855042,0.0246,3202.6,3200.3,0.10099999]
[1763390855247,0.0246,3202.6,3200.3,0.001]
[1763390855532,0.0246,3202.6,3200.5,0.09999999]
[1763390855741,0.0246,3202.6,3200.7,0.09999999]
[1763390855900,0.0246,3202.6,3200.5,0.09999999]
[1763390856101,0.0246,3202.6,3200.8,0.09999999]
[1763390856339,0.0246,3202.6,3200.3,0.4682]
[1763390856633,0.0246,3202.6,3200.3,0.56819999]
[1763390856806,0.0246,3202.6,3200.7,0.09999999]
[1763390857006,0.0246,3202.6,3201.0,0.09999999]
[1763390857455,0.007,3202.9,3201.0,0.56719999]
[1763390857758,0.0246,3202.8,3201.4,0.09999999]
[1763390857912,0.0246,3202.8,3200.7,0.09999999]
[1763390858100,0.0246,3202.8,3201.0,0.56719999]
[1763390858443,0.0246,3202.8,3201.1,0.09999999]
[1763390859147,0.007,3202.9,3201.4,0.09999999]
[1763390859638,0.007,3202.9,3201.3,0.4672]
[1763390859848,0.007,3202.9,3201.2,0.09999999]
[1763390859849,0.0246,3202.8,3201.2,0.09999999]
[1763390860023,0.007,3202.9,3201.3,0.4672]
[1763390860349,0.007,3202.9,3201.5,0.09999999]
[1763390860535,0.0316,3202.9,3201.5,0.09999999]
[1763390860858,0.405504,3202.8,3200.6,0.09999999]
[1763390861000,0.90699264,3202.4,3200.7,0.4672]
[1763390861342,0.0316,3202.9,3201.1,0.09999999]
[1763390861560,0.007,3202.9,3201.6,0.09999999]
[1763390861703,0.007,3202.9,3200.8,0.405504]
[1763390861898,0.007,3202.9,3202.2,0.09999999]
[1763390862100,0.007,3202.9,3202.8,0.28499999]
[1763390862409,0.007,3202.9,3202.8,0.185]
[1763390862609,0.005,3203.9,3202.8,0.75219999]
[1763390862832,0.005,3203.9,3202.9,0.4672]
[1763390863021,0.005,3203.9,3203.4,0.09999999]
[1763390863435,0.005,3203.9,3202.8,0.75219999]
[1763390863636,0.005,3203.9,3203.1,0.09999999]
[1763390863839,0.0316,3203.8,3201.7,0.185]
[1763390864054,3.3,3203.6,3201.7,0.185]
[1763390864265,3.3,3203.2,3200.9,0.185]
[1763390864404,0.3705504,3203.5,3200.9,0.185]
[1763390864405,3.3,3203.0,3200.9,0.185]
[1763390864601,0.0316,3202.9,3200.9,0.185]
[1763390865048,0.0316,3202.9,3201.1,0.005]
[1763390865211,0.0316,3202.9,3201.6,0.09999999]
[1763390865416,3.3,3202.7,3201.6,0.09999999]
[1763390865613,3.3,3202.7,3201.4,0.09999999]
[1763390865850,3.3,3202.7,3201.1,0.005]
[1763390866045,0.36476,3202.8,3201.4,0.09999999]
[1763390866211,3.3,3202.8,3201.4,0.09999999]
[1763390866409,3.3,3202.8,3201.2,0.4672]
[1763390866410,0.0316,3203.2,3201.5,0.56719999]
[1763390866626,0.0316,3203.2,3201.5,0.09999999]
[1763390866842,0.0316,3203.2,3201.8,0.09999999]
[1763390867445,0.0316,3203.2,3202.0,0.09999999]
[1763390867606,3.3,3203.1,3201.5,0.4672]
[1763390867806,3.3,3203.1,3201.1,0.4722]
[1763390868021,3.3,3203.1,3201.8,0.09999999]
[1763390868311,3.3,3203.1,3201.1,0.4722]
[1763390868652,0.005,3203.9,3201.1,0.4722]
[1763390868653,0.49138975,3203.8,3201.2,0.49843828]
[1763390868948,0.005,3203.9,3203.1,0.09999999]
[1763390869147,0.005,3203.9,3202.4,0.09999999]
[1763390869355,0.005,3203.9,3202.8,0.09999999]
[1763390869906,0.005,3203.9,3202.4,0.4672]
[1763390870113,0.005,3203.9,3202.3,0.185]
[1763390870313,0.0316,3203.8,3201.9,0.28499999]
[1763390870514,0.005,3203.9,3202.0,0.49843048]
[1763390870849,0.3355,3203.9,3202.5,0.09999999]
[1763390871014,0.005,3203.9,3202.5,0.09999999]
[1763390871410,0.0316,3203.8,3202.2,0.09999999]
[1763390871624,0.0316,3203.8,3202.4,0.09999999]
[1763390872040,0.0316,3203.8,3201.9,0.185]
[1763390872348,0.005,3203.9,3202.2,0.09999999]
[1763390872851,0.0366,3203.9,3201.9,0.185]
[1763390873225,3.3366,3203.9,3202.5,0.09999999]
[1763390873552,0.0366,3203.9,3202.5,0.09999999]
[1763390873755,0.0366,3203.9,3202.0,0.09999999]
[1763390874054,0.0316,3203.8,3201.9,0.6522]
[1763390874479,0.005,3203.9,3202.5,0.09999999]
[1763390874635,3.302,3203.8,3202.2,0.09999999]
[1763390874835,0.42139926,3203.7,3202.5,0.09999999]
[1763390875243,0.002,3203.8,3202.5,0.09999999]
[1763390876171,4.20699264,3203.6,3202.2,0.09999999]
[1763390876468,0.002,3203.8,3201.9,0.185]
[1763390876469,0.002,3203.8,3202.5,0.09999999]
[1763390876670,0.002,3203.8,3202.0,0.56719999]
[1763390876831,0.0308,3203.7,3201.3,0.4672]
[1763390877038,0.0308,3203.7,3202.2,0.09999999]
[1763390877280,3.3,3203.7,3202.3,0.09999999]
[1763390877463,0.45169926,3203.6,3202.3,0.09999999]
[1763390877648,0.002,3203.8,3202.5,0.09999999]
[1763390877848,0.230891,3202.8,3202.5,0.09999999]
[1763390878570,0.230891,3202.8,3202.6,0.4814]
[1763390878733,0.230891,3202.8,3202.7,0.09999999]
[1763390879173,0.230891,3202.8,3202.7,0.58139999]
[1763390879540,0.230891,3202.8,3202.5,0.09999999]
[1763390879938,0.230891,3202.8,3202.6,0.4814]
[1763390880232,0.002,3203.8,3203.4,0.09999999]
[1763390880784,0.002,3203.8,3203.5,0.09999999]
[1763390880934,0.002,3203.8,3202.0,0.1847]
[1763390880935,0.002,3203.8,3203.0,0.09999999]
[1763390881289,0.002,3203.8,3203.4,0.09999999]
[1763390881447,0.002,3203.8,3202.6,0.4814]
[1763390881640,0.002,3203.8,3203.7,0.09999999]
[1763390882076,0.005,3203.9,3203.7,0.58139999]
[1763390882374,0.005,3203.9,3202.3,0.09999999]
[1763390882375,0.2636,3203.8,3202.3,0.09999999]
[1763390882678,0.2636,3203.8,3201.4,0.4814]
[1763390882679,0.1308,3202.4,3201.4,0.4814]
[1763390882880,3.3,3203.6,3202.5,0.09999999]
[1763390883171,3.3,3203.4,3202.7,0.09999999]
[1763390883373,0.2636,3203.3,3201.6,0.4814]
[1763390883578,0.2636,3203.3,3200.7,0.16326703]
[1763390883785,3.3,3203.1,3201.1,0.4864]
[1763390883935,0.405504,3202.8,3201.1,0.005]
[1763390884134,0.35636,3203.2,3201.8,0.09999999]
[1763390884135,0.2636,3203.1,3201.8,0.09999999]
[1763390884335,0.2636,3203.1,3201.2,0.4814]
[1763390884336,3.3,3203.0,3201.2,0.58139999]
[1763390884644,3.3,3203.0,3201.7,0.09999999]
[1763390884870,0.005,3203.9,3202.2,0.09999999]
[1763390885140,0.405504,3203.7,3201.2,0.58139999]
[1763390885471,3.3,3203.2,3202.0,0.09999999]
[1763390885688,0.2636,3203.7,3202.3,0.09999999]
[1763390885990,0.2636,3203.7,3202.6,0.09999999]
[1763390886501,0.2636,3203.7,3202.3,0.4814]
[1763390886669,0.2636,3203.7,3202.2,0.1847]
[1763390887054,3.3,3203.3,3201.9,0.09999999]
[1763390887390,0.2636,3203.7,3201.3,0.4814]
[1763390887391,3.3,3203.1,3201.3,0.4814]
[1763390887588,3.3,3203.1,3202.0,0.09999999]
[1763390887792,3.3,3203.1,3201.6,0.09999999]
[1763390888004,3.3,3202.9,3201.1,0.005]
[1763390888211,3.3,3202.9,3201.2,0.09999999]
[1763390888421,3.3,3202.5,3201.1,0.4864]
[1763390888567,3.3,3202.5,3201.4,0.09999999]
[1763390889506,3.3,3202.5,3201.1,0.4864]
[1763390889507,0.1308,3202.7,3201.9,0.09999999]
[1763390889714,0.3944,3202.7,3201.1,0.005]
[1763390889869,0.1308,3202.7,3201.9,0.09999999]
[1763390890419,0.2636,3203.3,3201.9,0.09999999]
[1763390891164,0.2636,3203.3,3201.7,0.09999999]
[1763390891405,0.2636,3203.3,3201.7,0.28469999]
[1763390891581,0.005,3203.9,3202.2,0.09999999]
[1763390891792,0.005,3203.9,3202.7,0.09999999]
[1763390892103,0.2636,3203.8,3202.7,0.09999999]
[1763390892304,0.005,3203.9,3202.7,0.09999999]
[1763390892739,0.2686,3203.9,3202.3,0.09999999]
[1763390893033,0.1308,3202.4,3200.8,0.4814]
[1763390893230,0.2686,3203.9,3202.0,0.09999999]
[1763390893428,3.3,3203.6,3201.7,0.09999999]
[1763390893647,3.3,3203.2,3201.6,0.001]
[1763390893854,0.3705504,3203.5,3201.6,0.001]
[1763390894149,0.669104,3203.4,3201.6,0.001]
[1763390894442,0.1308,3201.7,3201.6,0.001]
[1763390894597,0.2636,3203.3,3201.6,0.001]
[1763390894798,0.405504,3203.6,3201.6,0.001]
[1763390895195,0.405504,3203.4,3201.6,0.001]
[1763390895496,1.31249664,3203.2,3201.6,0.001]
[1763390895852,0.1308,3201.7,3201.6,0.001]
[1763390896149,0.405504,3203.0,3201.6,0.001]
[1763390896150,0.46124966,3203.1,3201.6,0.001]
[1763390896291,0.1308,3201.7,3201.6,0.001]
[1763390896495,3.3,3202.9,3201.6,0.001]
[1763390896886,0.2636,3202.9,3201.6,0.001]
[1763390897199,0.002,3203.8,3201.7,0.1864]
[1763390897402,0.2636,3203.6,3202.0,0.09999999]
[1763390897601,0.2636,3203.6,3201.7,0.6367]
[1763390897602,0.2628,3203.6,3202.2,0.09999999]
[1763390898039,0.2628,3203.6,3201.9,0.09999999]
[1763390898338,0.2628,3203.6,3201.7,0.1864]
[1763390898339,0.2628,3203.6,3201.7,0.28639999]
[1763390898532,0.2628,3203.6,3201.8,0.4503]
[1763390898767,0.35628,3203.5,3202.2,0.09999999]
[1763390898916,0.002,3203.8,3202.6,0.09999999]
[1763390899252,0.002,3203.8,3202.2,0.09999999]
[1763390899546,0.2628,3203.7,3202.2,0.55029999]
[1763390899749,0.2628,3203.7,3202.6,0.09999999]
[1763390899912,0.2628,3203.7,3202.2,0.4503]
[1763390899913,0.405504,3203.6,3202.2,0.09999999]
[1763390900102,3.3,3203.5,3201.7,0.1864]
[1763390900301,0.002,3203.8,3202.5,0.09999999]
[1763390900497,0.002,3203.8,3201.9,0.4503]
[1763390900498,0.002,3203.8,3202.7,0.09999999]
[1763390900701,0.2648,3203.8,3202.4,0.09999999]
[1763390900949,3.3,3203.6,3202.2,0.09999999]
[1763390901095,3.3,3203.4,3202.0,0.09999999]
[1763390901500,0.002,3203.8,3202.1,0.4815295]
[1763390901731,0.002,3203.8,3202.7,0.09999999]
[1763390902156,3.3,3203.7,3202.5,0.09999999]
[1763390902356,3.3,3203.7,3202.9,0.09999999]
[1763390902634,3.3,3203.7,3202.5,0.4503]
[1763390902836,3.3,3203.7,3202.5,0.09999999]
[1763390903034,3.3,3203.7,3201.7,0.1864]
[1763390903035,0.002,3203.8,3203.2,0.09999999]
[1763390903248,0.002,3203.8,3203.7,0.1864]
[1763390903627,0.002,3203.8,3203.7,0.6367]
[1763390903798,0.005,3203.9,3203.8,0.09999999]
[1763390904003,0.005,3203.9,3203.8,0.55029999]
[1763390904214,0.005,3203.9,3203.8,0.09999999]
[1763390904563,0.005,3203.9,3201.7,0.1864]
[1763390904564,0.2698,3203.9,3202.8,0.1864]
[1763390904778,0.405504,3203.8,3202.3,0.09999999]
[1763390904986,0.3975304,3203.7,3202.3,0.09999999]
[1763390905125,0.405504,3203.6,3201.8,0.4503]
[1763390905329,0.2648,3203.5,3202.2,0.09999999]
[1763390905574,0.405504,3203.2,3202.2,0.09999999]
[1763390905777,0.405504,3203.1,3201.5,0.1864]
[1763390905987,0.405504,3202.9,3201.2,0.28639999]
[1763390906127,3.705504,3202.7,3200.8,0.6367]
[1763390906326,0.405504,3202.5,3200.8,0.6367]
[1763390906566,0.2648,3202.4,3201.0,0.09999999]
[1763390906871,0.405504,3203.4,3201.7,0.28639999]
[1763390907023,0.405504,3203.2,3201.7,0.28639999]
[1763390907391,0.405504,3203.2,3201.6,0.001]
[1763390907542,0.2648,3203.2,3201.7,0.1999]
[1763390907740,1.17179264,3203.1,3201.8,0.09999999]
[1763390907960,0.89323366,3203.0,3201.6,0.001]
[1763390908127,0.2648,3202.9,3201.6,0.001]
[1763390908329,0.3956,3203.5,3202.2,0.09999999]
[1763390908540,0.3956,3203.5,3202.0,0.09999999]
[1763390908741,0.3956,3203.5,3202.5,0.09999999]
[1763390908964,0.1358,3203.9,3202.9,0.09999999]
[1763390909351,0.1358,3203.9,3203.1,0.09999999]
[1763390909668,8.19428047,3203.8,3202.4,0.09999999]
[1763390909851,8.19428047,3203.8,3201.6,0.001]
[1763390909852,7.92948047,3202.6,3201.6,0.001]
[1763390910056,0.2648,3202.5,3201.6,0.001]
[1763390910430,4.61249664,3202.4,3201.6,0.001]
[1763390910933,7.92948047,3202.9,3201.6,0.001]
[1763390911133,0.79294805,3202.8,3201.9,0.09999999]
[1763390911480,0.90699264,3203.2,3201.7,0.09999999]
[1763390911686,0.405504,3203.1,3201.6,0.001]
[1763390911982,7.92948047,3203.3,3201.6,0.001]
[1763390911983,0.405504,3202.7,3201.6,0.001]
[1763390912388,3.705504,3202.5,3201.6,0.001]
[1763390912533,3.705504,3202.3,3201.6,0.001]
[1763390912864,0.90699264,3202.0,3201.6,0.001]
[1763390913074,0.90699264,3203.0,3201.6,0.001]
[1763390913267,0.2148,3202.8,3201.7,0.09999999]
[1763390913439,0.405504,3202.7,3202.0,0.001]
[1763390913641,0.88121383,3202.7,3202.0,0.001]
[1763390913854,0.88121383,3202.7,3201.6,0.001]
[1763390913855,0.405504,3202.5,3201.6,0.001]
[1763390914057,0.41510065,3202.6,3201.6,0.001]
[1763390914231,0.2138,3203.1,3201.8,0.09999999]
[1763390914427,0.47770983,3203.8,3201.9,0.09999999]
[1763390914428,0.2138,3203.7,3201.9,0.09999999]
[1763390914674,0.2138,3203.7,3202.1,0.09999999]
[1763390915032,3.297,3203.3,3201.9,0.09999999]
[1763390915242,7.06524341,3203.7,3201.8,0.09999999]
[1763390915431,0.405504,3203.5,3201.8,0.09999999]
[1763390915868,0.2138,3203.4,3201.8,0.09999999]
[1763390916193,0.2138,3203.4,3201.6,0.001]
[1763390916194,3.297,3203.1,3201.6,0.001]
[1763390916366,3.297,3202.3,3201.6,0.001]
[1763390916673,3.702504,3201.9,3201.6,0.001]
[1763390916870,3.702504,3201.7,3201.6,0.001]
[1763390917056,4.60949664,3201.7,3201.6,0.001]
[1763390917370,4.41779264,3201.7,3201.6,0.001]
[1763390917570,1.31249664,3203.0,3201.6,0.001]
[1763390917873,1.31249664,3202.4,3201.6,0.001]
[1763390918076,0.405504,3201.1,3200.5,0.001]
[1763390918236,4.60949664,3200.9,3199.1,0.005]
[1763390918634,3.702504,3200.2,3199.1,0.005]
[1763390918859,3.297,3199.8,3199.1,0.005]
[1763390919043,0.90699264,3199.7,3199.1,0.005]
[1763390919258,0.2048,3200.1,3199.1,0.005]
[1763390919259,0.610304,3200.1,3199.1,0.005]
[1763390920372,0.405504,3199.9,3199.1,0.005]
[1763390920575,0.730504,3199.2,3199.1,0.005]